bitfinex-derivatives/quotes_BNBF0:USTF0_20250907
["timestamp","ask_amount","ask_price","bid_price","bid_amount"]
[1757239747019,2.5780151,870.63,869.01,0.77188632]
[1757239747020,2.5780151,870.72,869.11,0.75234759]
[1757239747219,2.5780151,870.72,869.12,0.75234759]
[1757239747419,2.5780151,870.77,869.13,0.75234759]
[1757239747619,2.5780151,870.77,869.14,0.75234759]
[1757239747820,2.5780151,870.77,869.15,0.75234759]
[1757239748021,2.5780151,870.77,869.16,0.75234759]
[1757239748218,2.5780151,870.77,869.17,0.75234759]
[1757239748417,2.5780151,870.77,869.18,0.75234759]
[1757239748621,2.5780151,870.77,869.19,0.75234759]
[1757239748820,2.5780151,870.77,869.2,0.75234759]
[1757239749018,2.5780151,870.77,868.9,0.19982659]
[1757239749224,2.5780151,870.77,868.97,0.77245762]
[1757239749422,2.5780151,870.77,868.98,0.74700865]
[1757239749620,2.5780151,870.77,868.99,0.74700865]
[1757239749821,2.5780151,870.77,869.0,0.74700865]
[1757239750019,2.5780151,870.77,869.01,0.74700865]
[1757239750220,2.5780151,870.69,869.02,0.74700865]
[1757239750423,2.5780151,870.69,869.03,0.74700865]
[1757239750625,2.5780151,870.69,869.04,0.74700865]
[1757239750824,2.5780151,870.7,869.05,0.74700865]
[1757239751023,2.5780151,870.7,869.06,0.74700865]
[1757239751223,2.5780151,870.68,869.07,0.74700865]
[1757239751523,2.5780151,870.68,868.99,0.77245762]
[1757239751524,2.5780151,870.68,869.08,0.74700865]
[1757239751724,2.5780151,870.68,869.09,0.74700865]
[1757239751924,2.5780151,870.68,869.1,0.74700865]
[1757239752124,2.5780151,870.68,869.11,0.74700865]
[1757239752325,2.5780151,870.86,869.12,0.74700865]
[1757239752525,2.5780151,870.86,869.13,0.74700865]
[1757239752722,2.5780151,870.86,869.14,0.74700865]
[1757239753025,2.5780151,870.86,869.15,0.74700865]
[1757239753225,2.5780151,870.86,869.16,0.74700865]
[1757239753521,2.5780151,870.86,869.17,0.74700865]
[1757239753826,2.5780151,870.87,869.18,0.74700865]
[1757239754025,2.5780151,870.87,869.19,0.74700865]
[1757239754322,2.5780151,870.87,869.2,0.74700865]
[1757239754526,2.5780151,870.87,869.21,0.74700865]
[1757239754822,2.5780151,870.87,869.22,0.74700865]
[1757239755020,2.5780151,870.87,869.23,0.74700865]
[1757239755225,2.5780151,870.87,869.24,0.74700865]
[1757239755524,2.5780151,870.87,869.25,0.74700865]
[1757239755725,2.5780151,870.87,869.26,0.74700865]
[1757239755924,2.5780151,870.81,869.27,0.74700865]
[1757239756125,2.5780151,870.81,869.28,0.74700865]
[1757239756326,2.5780151,870.81,869.29,0.74700865]
[1757239756522,2.5780151,870.74,868.95,0.77245762]
[1757239756727,2.5780151,870.74,868.96,0.74670198]
[1757239756924,2.5780151,870.67,868.97,0.74670198]
[1757239757122,2.5780151,870.67,868.98,0.74670198]
[1757239757325,2.5780151,870.67,868.99,0.74670198]
[1757239757523,2.5780151,870.66,869.0,0.74670198]
[1757239757728,2.5780151,870.66,869.01,0.74670198]
[1757239757930,2.5780151,870.66,869.02,0.74670198]
[1757239758229,2.5780151,870.66,869.03,0.74670198]
[1757239758427,2.5780151,870.66,869.04,0.74670198]
[1757239758628,2.5780151,870.67,869.05,0.74670198]
[1757239758831,2.5780151,870.67,869.06,0.74670198]
[1757239759128,2.5780151,870.68,869.07,0.74670198]
[1757239759328,2.5780151,870.68,869.08,0.74670198]
[1757239759631,2.5780151,870.68,869.09,0.74670198]
[1757239759828,2.5780151,870.68,869.1,0.74670198]
[1757239760031,2.5780151,870.68,869.11,0.74670198]
[1757239760332,2.5780151,870.67,869.12,0.74670198]
[1757239760530,2.5780151,870.67,869.13,0.74670198]
[1757239760833,2.5780151,870.68,869.14,0.74670198]
[1757239761033,2.5780151,870.68,869.15,0.74670198]
[1757239761232,2.5780151,870.67,869.16,0.74670198]
[1757239761430,2.5780151,870.67,869.17,0.74670198]
[1757239761629,2.5780151,870.67,869.18,0.74670198]
[1757239761829,2.5780151,870.67,869.19,0.74670198]
[1757239762028,2.5780151,870.67,869.2,0.74670198]
[1757239762229,2.5780151,870.46,869.21,0.74670198]
[1757239762534,1.1445178,870.46,869.22,0.74670198]
[1757239762834,3.6040108,870.83,869.23,0.74670198]
[1757239763032,3.6040108,870.83,869.24,0.74670198]
[1757239763229,3.6040108,870.83,869.25,0.74670198]
[1757239763432,3.6040108,870.83,869.26,0.74670198]
[1757239763630,3.6040108,870.83,869.27,0.74670198]
[1757239763834,3.6040108,870.76,869.28,0.74670198]
[1757239764034,3.6040108,870.76,869.0,0.77245762]
[1757239764230,3.6040108,870.76,869.01,0.75742416]
[1757239764533,3.6040108,870.76,869.02,0.75742416]
[1757239764731,3.6040108,870.76,869.03,0.75742416]
[1757239764931,0.19973827,871.14,869.04,0.75742416]
[1757239765136,0.19973827,871.14,869.05,0.75742416]
[1757239765332,0.19973827,871.14,869.06,0.75742416]
[1757239765533,0.19973827,871.14,869.07,0.75742416]
[1757239765732,0.19973827,871.14,869.08,0.75742416]
[1757239765938,0.19973827,871.14,869.09,0.75742416]
[1757239766233,0.19973827,871.14,869.1,0.75742416]
[1757239766437,0.19973827,871.14,869.11,0.75742416]
[1757239766736,0.19973827,871.14,869.12,0.75742416]
[1757239766938,0.19973827,871.14,869.13,0.75742416]
[1757239767133,0.19973827,871.14,869.14,0.75742416]
[1757239767332,0.19973827,871.14,869.15,0.75742416]
[1757239767632,0.19973827,871.14,869.16,0.75742416]
[1757239767838,0.19973827,871.14,869.17,0.75742416]
[1757239768036,0.19973827,871.14,869.18,0.75742416]
[1757239768336,0.19973827,871.14,869.19,0.75742416]
[1757239768536,0.19973827,871.14,869.2,0.75742416]
[1757239768735,0.19973827,871.14,869.21,0.75742416]
[1757239768934,0.19973827,871.14,869.22,0.75742416]
[1757239769140,0.19973827,871.14,869.23,0.75742416]
[1757239769337,0.19973827,871.14,869.24,0.75742416]
[1757239769638,0.19973827,871.14,869.25,0.75742416]
[1757239769838,0.19973827,871.14,869.26,0.75742416]
[1757239770038,0.19973827,871.14,869.27,0.75742416]
[1757239770238,0.19973827,871.14,869.28,0.75742416]
[1757239770437,0.19973827,871.14,869.29,0.75742416]
[1757239770635,0.19973827,871.14,869.3,0.75742416]
[1757239770835,0.19973827,871.14,869.31,0.75742416]
[1757239771034,0.19973827,871.14,869.32,0.75742416]
[1757239771239,0.19973827,871.14,869.33,0.75742416]
[1757239771437,0.19973827,871.14,869.34,0.75742416]
[1757239771636,0.19973827,871.14,868.9,0.19982659]
[1757239771838,0.19973827,871.14,868.91,0.7236275]
[1757239772039,0.19973827,871.14,868.92,0.7236275]
[1757239772236,0.19973827,871.14,868.93,0.7236275]
[1757239772537,0.19973827,871.14,868.94,0.7236275]
[1757239772842,0.19973827,871.14,868.95,0.7236275]
[1757239773041,0.19973827,871.14,868.96,0.7236275]
[1757239773335,0.19973827,871.14,868.97,0.7236275]
[1757239773534,0.19973827,871.14,868.98,0.7236275]
[1757239773736,0.19973827,871.14,868.99,0.7236275]
[1757239773940,0.19973827,871.14,869.0,0.7236275]
[1757239774136,0.19973827,871.14,869.01,0.7236275]
[1757239774441,0.19973827,871.14,869.02,0.7236275]
[1757239774635,0.19973827,871.14,869.03,0.7236275]
[1757239774840,0.19973827,871.14,869.04,0.7236275]
[1757239775135,0.19973827,871.14,869.05,0.7236275]
[1757239775340,0.19973827,871.14,869.06,0.7236275]
[1757239775541,0.81868726,871.13,869.07,0.7236275]
[1757239775837,0.81868726,871.12,868.9,0.19982659]
[1757239776036,0.19973827,871.14,868.91,0.72232815]
[1757239776037,0.81868726,871.11,868.91,0.72232815]
[1757239776240,2.5794657,870.96,868.92,0.72232815]
[1757239776438,2.5794657,870.96,868.93,0.72232815]
[1757239776636,2.5794657,870.97,868.94,0.72232815]
[1757239776836,2.5794657,870.97,868.95,0.72232815]
[1757239777040,2.5794657,870.97,868.96,0.72232815]
[1757239777237,2.5794657,870.97,868.97,0.72232815]
[1757239777537,2.5794657,870.97,868.98,0.72232815]
[1757239777740,2.5794657,870.96,868.99,0.72232815]
[1757239777940,2.5794657,870.96,869.0,0.72232815]
[1757239778139,2.5794657,870.96,869.01,0.72232815]
[1757239778337,2.5794657,870.96,868.9,0.19982659]
[1757239778538,2.5794657,870.96,868.91,0.72213107]
[1757239778735,2.5794657,870.97,868.92,0.72213107]
[1757239778941,2.5794657,870.97,868.93,0.72213107]
[1757239779237,2.5794657,870.97,868.94,0.72213107]
[1757239779442,2.5794657,870.97,868.95,0.72213107]
[1757239779641,2.5794657,870.97,868.96,0.72213107]
[1757239779842,2.5794657,870.97,868.97,0.72213107]
[1757239780141,2.5794657,870.97,868.98,0.72213107]
[1757239780441,2.5794657,870.97,868.99,0.72213107]
[1757239780634,2.5794657,870.97,869.0,0.72213107]
[1757239780840,2.5794657,870.97,869.01,0.72213107]
[1757239781137,2.5794657,870.97,868.9,0.19982659]
[1757239781341,2.5794657,870.39,868.91,0.72198471]
[1757239781539,2.5794657,870.39,868.92,0.72198471]
[1757239781742,2.5794657,870.39,868.93,0.72198471]
[1757239781943,2.5794657,870.39,868.94,0.72198471]
[1757239782244,2.5794657,870.39,868.95,0.72198471]
[1757239782444,2.5794657,870.39,868.9,0.19982659]
[1757239782640,2.5794657,870.39,868.91,0.72194412]
[1757239782842,2.5794657,870.36,868.92,0.72194412]
[1757239783140,2.5794657,870.36,868.93,0.72194412]
[1757239783340,2.5794657,870.36,868.94,0.72194412]
[1757239783641,2.5794657,870.36,868.95,0.7214624]
[1757239783841,2.5794657,870.36,868.9,0.19982659]
[1757239784040,2.5794657,870.41,868.91,0.7214624]
[1757239784240,2.5794657,870.41,868.92,0.7214624]
[1757239784544,2.5794657,870.28,868.93,0.7214624]
[1757239784742,2.5794657,870.28,868.9,0.19982659]
[1757239785044,2.5794657,870.28,868.91,0.72144057]
[1757239785247,2.5794657,870.28,868.92,0.72144057]
[1757239785450,2.5761124,870.12,868.9,0.19982659]
[1757239785654,2.5761124,870.12,868.91,0.72140764]
[1757239785850,2.5761124,870.12,868.92,0.72140764]
[1757239786050,3.6040108,870.42,868.93,0.72140764]
[1757239786353,3.6040108,870.42,868.94,0.72140764]
[1757239786552,3.6040108,870.42,868.95,0.72140764]
[1757239786755,3.6040108,870.57,868.96,0.72140764]
[1757239786956,3.6040108,870.57,868.97,0.72140764]
[1757239787155,3.6040108,870.57,868.98,0.72140764]
[1757239787353,3.6040108,870.57,868.99,0.72140764]
[1757239787552,3.6040108,870.57,869.0,0.72140764]
[1757239787750,3.6040108,870.57,869.01,0.72140764]
[1757239787955,3.6040108,870.57,869.02,0.72140764]
[1757239788155,3.6040108,870.57,869.03,0.72140764]
[1757239788357,3.6040108,870.57,869.04,0.72140764]
[1757239788550,3.6040108,870.57,868.9,0.19982659]
[1757239788855,5.1485869,871.03,868.91,0.74364445]
[1757239788856,3.6040108,870.71,868.91,0.74364445]
[1757239789055,3.6040108,870.71,868.92,0.74364445]
[1757239789355,3.6040108,870.71,868.93,0.74364445]
[1757239789656,3.6040108,870.71,868.94,0.74364445]
[1757239789853,3.6040108,870.71,868.95,0.74364445]
[1757239790056,3.6040108,870.71,868.96,0.74364445]
[1757239790252,3.6040108,870.71,868.97,0.74364445]
[1757239790454,3.6040108,870.71,868.98,0.74364445]
[1757239790658,3.6040108,870.71,868.99,0.74364445]
[1757239790957,3.6040108,870.72,869.0,0.74364445]
[1757239791158,3.6040108,870.72,869.01,0.74364445]
[1757239791453,3.6040108,870.72,869.02,0.74364445]
[1757239791658,3.6040108,870.72,869.03,0.74364445]
[1757239791855,3.6040108,870.76,869.04,0.74364445]
[1757239792054,3.6040108,870.76,869.05,0.74364445]
[1757239792259,3.6040108,870.76,868.9,0.19982659]
[1757239792554,3.6040108,870.76,868.91,0.74359701]
[1757239792853,3.6040108,870.76,868.92,0.74359701]
[1757239793057,3.6040108,870.76,868.93,0.74359701]
[1757239793255,3.6040108,870.76,868.94,0.74359701]
[1757239793459,3.6040108,870.76,868.95,0.74359701]
[1757239793659,3.6040108,870.76,868.96,0.74359701]
[1757239793855,3.6040108,870.76,868.97,0.74359701]
[1757239794059,3.6040108,870.94,868.98,0.74359701]
[1757239794355,3.6040108,870.94,868.99,0.74359701]
[1757239794555,2.5753022,870.56,869.0,0.74359701]
[1757239794855,2.5753022,870.56,869.01,0.74359701]
[1757239795059,2.5753022,870.57,869.02,0.74359701]
[1757239795354,2.5753022,870.57,868.9,0.19982659]
[1757239795355,2.5753022,870.57,869.03,0.74359701]
[1757239795559,2.5753022,870.57,869.04,0.74359701]
[1757239795759,2.5753022,870.57,869.05,0.74359701]
[1757239795959,2.5753022,870.58,869.06,0.74359701]
[1757239796159,2.5753022,870.58,869.07,0.74359701]
[1757239796455,2.5753022,870.58,869.08,0.74359701]
[1757239796659,2.5753022,870.58,868.9,0.19982659]
[1757239796856,2.5753022,870.58,868.91,0.74378116]
[1757239797157,2.5753022,870.63,868.92,0.74378116]
[1757239797361,2.5753022,870.63,868.93,0.74378116]
[1757239797657,2.5753022,870.66,868.94,0.74378116]
[1757239797961,2.5753022,870.66,868.95,0.74378116]
[1757239798260,2.5753022,870.66,868.96,0.74378116]
[1757239798457,2.5753022,870.66,868.97,0.74378116]
[1757239798655,2.5753022,870.63,868.98,0.74378116]
[1757239798857,2.5753022,870.63,868.99,0.74378116]
[1757239799060,2.5753022,870.63,869.0,0.74378116]
[1757239799259,2.5753022,870.63,869.01,0.74378116]
[1757239799458,2.5753022,870.63,869.02,0.74378116]
[1757239799663,2.5753022,870.63,869.03,0.74378116]
[1757239799965,2.5753022,870.63,869.04,0.74378116]
[1757239800260,2.5753022,870.75,869.05,0.74378116]
[1757239800465,2.5753022,870.75,869.06,0.74378116]
[1757239800761,2.5753022,870.81,869.07,0.74378116]
[1757239800964,2.5753022,870.81,869.08,0.74378116]
[1757239801162,2.5753022,870.81,869.09,0.74378116]
[1757239801362,2.5753022,870.82,868.9,0.19982659]
[1757239801564,2.5753022,870.82,868.91,0.74283799]
[1757239801761,2.5753022,870.82,868.92,0.74283799]
[1757239801964,2.5753022,870.82,868.93,0.74283799]
[1757239802161,2.5753022,870.82,868.9,0.19982659]
[1757239802162,2.5753022,870.82,868.94,0.74283799]
[1757239802363,2.5753022,870.83,868.95,0.74283799]
[1757239802563,2.5753022,870.83,868.96,0.74283799]
[1757239802862,2.5753022,870.84,868.97,0.74283799]
[1757239803066,2.5753022,870.84,868.98,0.74283799]
[1757239803266,2.5753022,870.84,868.99,0.74283799]
[1757239803566,2.5753022,870.83,869.0,0.74283799]
[1757239803866,2.5753022,870.83,868.9,0.19982659]
[1757239803867,2.5753022,870.78,869.01,0.74283799]
[1757239804064,2.5753022,870.78,869.02,0.74283799]
[1757239804267,2.5753022,870.78,868.9,0.19982659]
[1757239804268,2.5753022,870.78,869.03,0.74283799]
[1757239804565,2.5753022,870.78,869.04,0.74283799]
[1757239804864,2.5753022,870.78,869.05,0.74283799]
[1757239805066,2.5753022,870.78,869.06,0.74283799]
[1757239805264,2.5753022,870.78,869.07,0.74283799]
[1757239805469,2.5753022,870.78,869.08,0.74283799]
[1757239805765,2.5753022,870.78,868.9,0.19982659]
[1757239805969,2.5753022,870.75,868.91,0.74281205]
[1757239806169,2.5753022,870.75,868.92,0.74281205]
[1757239806367,2.5753022,870.75,868.93,0.74281205]
[1757239806568,2.5753022,870.75,868.94,0.74281205]
[1757239806866,2.5753022,870.75,868.95,0.74281205]
[1757239807068,2.5753022,870.73,868.96,0.74281205]
[1757239807266,2.5753022,870.73,868.97,0.74281205]
[1757239807465,2.5753022,870.71,868.98,0.74281205]
[1757239807665,2.5753022,870.71,868.99,0.74281205]
[1757239807869,2.5753022,870.71,869.0,0.74281205]
[1757239808068,2.5753022,870.72,869.01,0.74281205]
[1757239808272,2.5753022,870.72,869.02,0.74281205]
[1757239808469,2.5753022,870.72,869.03,0.74281205]
[1757239808770,2.5753022,870.72,869.04,0.74281205]
[1757239808969,2.5753022,870.72,869.05,0.74281205]
[1757239809170,2.5753022,870.55,868.9,0.19982659]
[1757239809467,2.5753022,870.55,868.91,0.7428361]
[1757239809670,0.19973827,871.14,868.92,0.7428361]
[1757239809671,2.5753022,870.57,868.92,0.7428361]
[1757239809872,2.5753022,870.57,868.93,0.7428361]
[1757239810071,2.5753022,870.57,868.94,0.7428361]
[1757239810271,2.5753022,870.55,868.95,0.7428361]
[1757239810472,2.5753022,870.55,868.96,0.7428361]
[1757239810673,2.5753022,870.57,868.97,0.7428361]
[1757239810870,2.5753022,870.57,868.98,0.7428361]
[1757239811169,2.5753022,870.56,868.99,0.7428361]
[1757239811372,2.5753022,870.56,869.0,0.7428361]
[1757239811569,2.5753022,870.56,869.01,0.7428361]
[1757239811768,2.5753022,870.55,869.02,0.7428361]
[1757239811969,2.5753022,870.55,869.03,0.7428361]
[1757239812167,2.5753022,870.55,869.04,0.7428361]
[1757239812471,2.5753022,870.54,869.05,0.7428361]
[1757239812671,2.5753022,870.54,869.06,0.7428361]
[1757239812873,2.5753022,870.54,868.9,0.19982659]
[1757239813173,2.5753022,870.54,868.91,0.74313648]
[1757239813371,2.5753022,870.56,868.92,0.74313648]
[1757239813571,2.5753022,870.56,868.93,0.74313648]
[1757239813770,2.5753022,870.56,868.94,0.74313648]
[1757239814069,2.5753022,870.56,868.95,0.74313648]
[1757239814274,2.5753022,870.56,868.96,0.74313648]
[1757239814471,2.5753022,870.56,868.97,0.74313648]
[1757239814769,2.5753022,870.55,868.98,0.74313648]
[1757239814969,2.5753022,870.55,868.9,0.19982659]
[1757239814970,2.5753022,870.55,868.99,0.74313648]
[1757239815173,2.5753022,870.55,869.0,0.74313648]
[1757239815372,2.5753022,870.57,869.01,0.74313648]
[1757239815577,2.5753022,870.57,869.02,0.74313648]
[1757239815778,2.5753022,870.57,869.03,0.74313648]
[1757239815977,2.5753022,870.79,869.04,0.74313648]
[1757239816177,2.5753022,870.79,869.05,0.74313648]
[1757239816376,2.5753022,870.79,869.06,0.74313648]
[1757239816578,2.5753022,870.79,869.07,0.74313648]
[1757239816776,2.5753022,870.79,869.08,0.74313648]
[1757239816975,2.5753022,870.76,869.09,0.74313648]
[1757239817175,2.5753022,870.76,869.1,0.74313648]
[1757239817476,2.5753022,870.75,869.11,0.74313648]
[1757239817779,2.5753022,870.75,869.12,0.74313648]
[1757239818076,2.77504047,871.14,869.13,0.74313648]
[1757239818276,2.77504047,871.14,869.14,0.74313648]
[1757239818476,2.5753022,871.13,869.15,0.74313648]
[1757239818676,2.5753022,871.13,869.16,0.74313648]
[1757239818881,2.5753022,871.13,869.17,0.74313648]
[1757239819081,2.5753022,871.11,869.18,0.74313648]
[1757239819380,2.5753022,871.11,869.19,0.74313648]
[1757239819577,2.5753022,871.1,869.2,0.74313648]
[1757239819781,2.5753022,871.1,869.21,0.74313648]
[1757239819980,2.5753022,871.1,869.22,0.74313648]
[1757239820180,2.5753022,871.1,869.23,0.74313648]
[1757239820478,2.5753022,871.1,869.24,0.74313648]
[1757239820677,2.5753022,871.09,869.25,0.74313648]
[1757239820977,2.5753022,871.09,869.26,0.74313648]
[1757239821282,2.5753022,871.09,869.27,0.74313648]
[1757239821576,2.5753022,871.09,869.28,0.74313648]
[1757239821781,2.5753022,871.08,869.29,0.74313648]
[1757239821977,2.5753022,871.08,869.3,0.74313648]
[1757239822176,2.5753022,871.08,869.31,0.74313648]
[1757239822378,2.5753022,871.08,869.32,0.74313648]
[1757239822581,2.5753022,871.07,869.33,0.74313648]
[1757239822781,2.5753022,871.07,869.34,0.74313648]
[1757239822979,2.5753022,871.07,869.35,0.74313648]
[1757239823180,2.5753022,871.07,868.94,0.77245762]
[1757239823379,2.5753022,871.07,868.95,1.51572404]
[1757239823684,2.5753022,871.06,868.96,0.74326642]
[1757239823881,2.5753022,871.06,868.97,0.74326642]
[1757239824082,2.5753022,871.06,868.98,0.74326642]
[1757239824382,0.19972108,871.06,869.13,0.19972108]
[1757239824583,0.19972108,871.06,869.14,0.74326642]
[1757239824887,0.19972108,871.06,869.15,0.74332918]
[1757239825088,0.19972108,871.06,869.16,0.74332918]
[1757239825285,0.19972108,871.06,869.17,0.74332918]
[1757239825488,0.19972108,871.06,869.18,0.74332918]
[1757239825784,0.19972108,871.06,869.13,0.19972108]
[1757239825987,2.5753022,870.78,869.13,0.19972108]
[1757239827984,2.5753022,870.44,869.13,0.19972108]
[1757239828388,2.5753022,870.42,869.13,0.19972108]
[1757239829490,2.5753022,870.41,869.13,0.19972108]
[1757239830690,2.5753022,870.4,869.13,0.19972108]
[1757239830991,2.5753022,870.46,869.13,0.19972108]
[1757239831688,2.5753022,870.45,869.13,0.19972108]
[1757239832089,2.5753022,870.5,869.13,0.19972108]
[1757239832593,2.5753022,870.49,869.13,0.19972108]
[1757239834694,2.5753022,870.48,869.13,0.19972108]
[1757239835394,2.5753022,870.4,869.13,0.19972108]
[1757239835795,2.5753022,870.4,869.14,0.74393607]
[1757239836097,2.5753022,870.4,869.13,0.19972108]
[1757239836299,2.5753022,870.36,869.14,0.74393246]
[1757239836499,2.5753022,870.36,869.13,0.19972108]
[1757239836699,2.5753022,870.36,869.14,0.74393102]
[1757239837000,2.5753022,870.36,869.13,0.19972108]
[1757239837199,2.5753022,870.36,869.14,0.74393095]
[1757239837396,2.5753022,870.36,869.13,0.19972108]
[1757239837594,2.5753022,870.36,869.14,0.74386826]
[1757239837795,2.5753022,870.36,869.13,0.19972108]
[1757239837998,2.5753022,870.36,869.14,0.74386826]
[1757239838200,2.5753022,870.36,869.13,0.19972108]
[1757239838400,2.5753022,870.36,869.14,0.7438635]
[1757239838600,2.5753022,870.36,869.13,0.19972108]
[1757239838794,2.5753022,870.36,869.14,0.74377691]
[1757239838998,2.5753022,870.36,869.13,0.19972108]
[1757239839196,2.5753022,870.36,869.14,0.74377691]
[1757239839401,2.5753022,870.36,869.13,0.19972108]
[1757239839597,2.5753022,870.36,869.14,0.74377253]
[1757239839800,2.5753022,870.36,869.13,0.19972108]
[1757239840000,2.5753022,870.36,869.14,0.74377232]
[1757239840200,2.5753022,870.36,869.13,0.19972108]
[1757239840400,2.5753022,870.36,869.14,0.74376823]
[1757239840600,2.5753022,870.36,869.13,0.19972108]
[1757239840800,3.6040108,870.69,869.14,0.74376823]
[1757239841001,2.5798244,870.29,869.13,0.19972108]
[1757239841200,2.5798244,870.29,869.14,0.74376823]
[1757239841398,2.5798244,870.29,869.13,0.19972108]
[1757239841797,2.5798244,870.29,869.14,0.77166144]
[1757239842002,3.6040108,870.51,869.15,0.77166144]
[1757239842200,3.6040108,870.51,869.16,0.77166144]
[1757239842498,3.6040108,870.51,869.17,0.77166144]
[1757239842697,3.6040108,870.51,869.18,0.77166144]
[1757239843002,3.6040108,870.45,869.13,0.19972108]
[1757239843998,3.6040108,870.68,869.13,0.19972108]
[1757239845897,3.6040108,870.68,869.14,0.74061178]
[1757239846200,3.6040108,870.67,869.15,0.74061178]
[1757239846398,3.6040108,870.67,869.13,0.19972108]
[1757239846599,3.6040108,870.67,869.14,0.74060917]
[1757239846801,3.6040108,870.67,869.15,0.74060917]
[1757239846998,3.6040108,870.67,869.13,0.19972108]
[1757239847201,3.6040108,870.78,869.14,0.7406091]
[1757239847398,3.6040108,870.78,869.15,0.7406091]
[1757239847603,3.6040108,870.78,869.13,0.19972108]
[1757239847801,3.6040108,870.78,869.14,0.74060942]
[1757239848099,3.6040108,870.78,869.15,0.74060942]
[1757239848400,3.6040108,870.85,869.16,0.74060942]
[1757239848603,3.6040108,870.85,869.13,0.19972108]
[1757239848901,3.6040108,870.85,869.14,0.74061014]
[1757239849108,3.6040108,870.85,869.15,0.74061014]
[1757239849301,3.6040108,870.92,869.16,0.74061014]
[1757239849505,3.6040108,870.92,869.17,0.74061014]
[1757239849807,2.5797653,870.61,869.13,0.19972108]
[1757239850103,2.5797653,870.61,869.14,0.74061124]
[1757239850303,2.5797653,870.6,869.15,0.74061124]
[1757239850598,2.5797653,870.6,869.16,0.74061124]
[1757239850802,2.5797653,870.6,869.17,0.74061124]
[1757239851001,2.5797653,870.6,869.13,0.19972108]
[1757239851199,2.5797653,870.6,869.14,0.74061264]
[1757239851402,2.5797653,870.6,869.15,0.74061264]
[1757239851602,2.5797653,870.6,869.16,0.74061264]
[1757239851806,2.5797653,870.6,869.17,0.74061264]
[1757239852005,2.5797653,870.6,869.13,0.19972108]
[1757239852209,2.5797653,870.6,869.14,0.74061462]
[1757239852404,2.5797653,870.6,869.15,0.74061462]
[1757239852608,2.5797653,870.6,869.16,0.74061462]
[1757239852805,2.5797653,870.6,869.17,0.74061462]
[1757239853005,2.5797653,870.59,869.13,0.19972108]
[1757239853308,2.5797653,870.59,869.14,0.74059067]
[1757239853505,2.5797653,870.6,869.15,0.74059067]
[1757239853709,2.5797653,870.6,869.16,0.74059067]
[1757239853907,2.5797653,870.55,869.13,0.19972108]
[1757239854106,2.5797653,870.55,869.14,0.74061099]
[1757239854406,2.5797653,870.55,869.15,0.74061099]
[1757239854610,2.5797653,870.55,869.16,0.74061099]
[1757239854809,2.5797653,870.55,869.13,0.19972108]
[1757239855007,2.5797653,870.56,869.14,0.74057281]
[1757239855208,2.5797653,870.56,869.15,0.74057281]
[1757239855406,2.5797653,870.56,869.16,0.74057281]
[1757239855608,1.146061,870.56,869.13,0.19972108]
[1757239855812,1.146061,870.56,869.14,0.7405784]
[1757239856012,1.146061,870.56,869.15,0.7405784]
[1757239856312,1.146061,870.56,869.13,0.19972108]
[1757239856313,3.6040108,870.95,869.16,0.7405784]
[1757239856509,0.19972108,871.06,869.17,0.7405784]
[1757239856713,0.19972108,871.06,869.13,0.19972108]
[1757239856714,0.19972108,871.06,869.18,0.7405784]
[1757239856915,0.19972108,871.06,869.19,0.7405784]
[1757239857110,0.19972108,871.06,869.2,0.7405784]
[1757239857410,0.19972108,871.06,869.21,0.7405784]
[1757239857615,0.19972108,871.06,869.22,0.7405784]
[1757239857914,0.19972108,871.06,869.23,0.7405784]
[1757239858212,0.19972108,871.06,869.24,0.7405784]
[1757239858412,0.19972108,871.06,869.25,0.7405784]
[1757239858611,0.19972108,871.06,869.26,0.7405784]
[1757239858813,0.19972108,871.06,869.27,0.7405784]
[1757239859013,0.19972108,871.06,869.28,0.7405784]
[1757239859315,0.19972108,871.06,869.29,0.7405784]
[1757239859513,0.19972108,871.06,869.3,0.7405784]
[1757239859712,0.19972108,871.06,869.13,0.19972108]
[1757239859713,3.6040108,870.99,869.31,0.7405784]
[1757239859915,3.6040108,870.99,869.32,0.7405784]
[1757239860115,3.6040108,870.99,869.33,0.7405784]
[1757239860314,3.6040108,870.99,869.34,0.7405784]
[1757239860512,3.6040108,870.99,869.35,0.7405784]
[1757239860716,0.19972108,871.06,869.36,0.7405784]
[1757239860913,0.19972108,871.06,869.37,0.7405784]
[1757239861114,0.19972108,871.06,869.13,0.19972108]
[1757239861315,0.19972108,871.06,869.14,0.75123113]
[1757239861518,0.19972108,871.06,869.15,0.75123113]
[1757239861713,0.19972108,871.06,869.16,0.75123113]
[1757239862017,0.19972108,871.06,869.17,0.75123113]
[1757239862212,0.19972108,871.06,869.18,0.75123113]
[1757239862418,0.19972108,871.06,869.19,0.75123113]
[1757239862618,0.19972108,871.06,869.2,0.75123113]
[1757239862814,0.19972108,871.06,869.21,0.75123113]
[1757239863119,0.19972108,871.06,869.22,0.75123113]
[1757239863319,0.19972108,871.06,869.23,0.75123113]
[1757239863519,0.19972108,871.06,869.24,0.75123113]
[1757239863720,0.19972108,871.06,869.25,0.75123113]
[1757239863920,0.19972108,871.06,869.26,0.75123113]
[1757239864117,0.19972108,871.06,869.27,0.75123113]
[1757239864418,0.19972108,871.06,869.28,0.75123113]
[1757239864619,2.5800071,870.96,869.29,0.75123113]
[1757239864919,2.5800071,870.96,869.3,0.75123113]